[Event "SVK Amateur-ch 2020"]
[Site "Topolcany"]
[Date "2020.07.13"]
[Round "6.2"]
[White "Kucera, Michal"]
[Black "Szocs, Ladislav"]
[Result "1-0"]
[ECO "B01"]
[WhiteElo "1991"]
[BlackElo "1791"]
[Annotator "ChessBase"]
[PlyCount "54"]
[EventDate "2020.07.10"]
[EventType "swiss"]
[EventCountry "SVK"]
[SourceTitle "playchess.com"]
[Source "ChessBase"]
[SourceQuality "1"]
[TimeControl "3600+30"]

1. e4 {[%emt 0:00:00]} d5 {[%emt 0:03:16]} 2. exd5 {[%emt 0:00:00]} Nf6 {[%emt 0:00:24]} 3. d4 {[%emt 0:00:17]} Nxd5 {[%emt 0:00:26]} 4. c4 {[%emt 0:00:27]} Nb6 {[%emt 0:00:27]} 5. Nc3 {[%emt 0:01:08]} e5 {[%emt 0:01:01]} 6. d5 {[%emt 0:02:55]} c6 {[%emt 0:01:04]} 7. a3 {[%emt 0:03:52]} Bd6 {[%emt 0:10:15]} 8. Be3 {[%emt 0:04:14]} Be7 {[%emt 0:09:49]} 9. d6 {[%emt 0:16:17]} Bf6 {[%emt 0:09:42]} 10. c5 {[%emt 0:02:32]} N6d7 {[%emt 0:00:14]} 11. Bc4 {[%emt 0:05:23]} O-O {[%emt 0:00:39]} 12. Nge2 {[%emt 0:02:59]} b6 {[%emt 0:01:22]} 13. cxb6 {[%emt 0:06:43]} axb6 {[%emt 0:00:13]} 14. O-O {[%emt 0:00:30]} Ba6 {[%emt 0:07:33]} 15. Bxa6 {[%emt 0:01:00]} Nxa6 {[%emt 0:00:16]} 16. Ne4 {[%emt 0:00:23]} c5 {[%emt 0:03:17]} 17. N2c3 {[%emt 0:01:33]} Rc8 {[%emt 0:01:16]} 18. f4 {[%emt 0:01:03]} exf4 {[%emt 0:10:03]} 19. Nxf6+ {[%emt 0:02:16]} Qxf6 {[%emt 0:02:48]} 20. Rxf4 {[%emt 0:01:25]} Qe6 {[%emt 0:00:30]} 21. Qd2 {[%emt 0:00:30]} Rc6 {[%emt 0:00:30]} 22. Rd1 {[%emt 0:08:24]} Qg6 {[%emt 0:04:03]} 23. Ra4 {[%emt 0:00:13]} Nab8 {[%emt 0:00:15]} 24. Nd5 {[%emt 0:01:14]} Qxd6 {[%emt 0:00:34]} 25. Bf4 {[%emt 0:00:30]} Ne5 {[%emt 0:00:30]} 26. Bxe5 {[%emt 0:00:30]} Qxe5 {[%emt 0:00:30]} 27. h3 {[%emt 0:00:30]} Kh8 {[%emt 0:00:30]} 1-0

[Event "SVK Amateur-ch 2020"]
[Site "Topolcany"]
[Date "2020.07.13"]
[Round "6.4"]
[White "Giertli, Vladimir"]
[Black "Bochnickova, Simona"]
[Result "1-0"]
[ECO "D11"]
[WhiteElo "2023"]
[BlackElo "1797"]
[Annotator "ChessBase"]
[PlyCount "41"]
[EventDate "2020.07.10"]
[EventType "swiss"]
[EventCountry "SVK"]
[SourceTitle "playchess.com"]
[Source "ChessBase"]
[SourceQuality "1"]
[TimeControl "3600+30"]

1. Nf3 {[%emt 0:05:26]} d5 {[%emt 0:00:00]} 2. c4 {[%emt 0:00:15]} c6 {[%emt 0:01:14]} 3. b3 {[%emt 0:01:50]} Nf6 {[%emt 0:00:43]} 4. Bb2 {[%emt 0:00:05]} Bf5 {[%emt 0:01:09]} 5. g3 {[%emt 0:00:35]} e6 {[%emt 0:00:31]} 6. Bg2 {[%emt 0:00:05]} h6 {[%emt 0:00:11]} 7. O-O {[%emt 0:00:14]} Be7 {[%emt 0:00:18]} 8. d4 {[%emt 0:00:46]} O-O {[%emt 0:06:11]} 9. Re1 {[%emt 0:02:00]} Nbd7 {[%emt 0:02:31]} 10. Nc3 {[%emt 0:00:42]} Bh7 {[%emt 0:01:30]} 11. Nd2 {[%emt 0:01:07]} a5 {[%emt 0:03:41]} 12. e4 {[%emt 0:00:39]} dxe4 {[%emt 0:00:17]} 13. Ndxe4 {[%emt 0:00:17]} Nxe4 {[%emt 0:00:23]} 14. Nxe4 {[%emt 0:00:29]} a4 {[%emt 0:00:50]} 15. Bc3 {[%emt 0:02:06]} axb3 {[%emt 0:00:44]} 16. axb3 {[%emt 0:00:01]} Qb6 {[%emt 0:00:25]} 17. Qc2 {[%emt 0:07:57]} c5 {[%emt 0:12:39]} 18. Qb2 {[%emt 0:01:04]} Rxa1 {[%emt 0:03:29]} 19. Rxa1 {[%emt 0:00:08]} f6 {[%emt 0:00:20]} 20. Ba5 {[%emt 0:01:07]} Qa7 {[%emt 0:02:21]} 21. Bc7 {[%emt 0:00:20]} 1-0

[Event "SVK Amateur-ch 2020"]
[Site "Topolcany"]
[Date "2020.07.13"]
[Round "6.5"]
[White "Pniaczek, Marek"]
[Black "Viczencz, Peter"]
[Result "1-0"]
[ECO "B38"]
[WhiteElo "2102"]
[BlackElo "2153"]
[Annotator "RC"]
[PlyCount "69"]
[EventDate "2020.07.10"]
[EventType "swiss"]
[EventCountry "SVK"]
[SourceTitle "playchess.com"]
[Source "ChessBase"]
[SourceQuality "1"]
[TimeControl "3600+30"]

1. e4 {[%emt 0:00:00]} c5 {[%emt 0:02:14]} 2. Nf3 {[%emt 0:00:00]} Nc6 {[%emt 0:00:06]} 3. d4 {[%emt 0:00:00]} cxd4 {[%emt 0:00:06]} 4. Nxd4 {[%emt 0:00:00]} g6 {[%emt 0:00:29]} 5. c4 {[%emt 0:00:17]} Bg7 {[%emt 0:00:06]} 6. Be3 {[%emt 0:00:10]} Nf6 {[%emt 0:00:57]} 7. Nc3 {[%emt 0:00:08]} O-O {[%emt 0:00:48]} 8. Be2 {[%emt 0:01:08]} d6 {[%emt 0:00:18]} 9. O-O {[%emt 0:00:27]} Nxd4 {[%emt 0:05:49]} 10. Bxd4 {[%emt 0:00:10]} Be6 {[%emt 0:00:24]} 11. Qd2 {[%emt 0:01:33]} Rc8 {[%emt 0:02:36]} 12. b3 {[%emt 0:00:45]} Qa5 {[%emt 0:00:46]} 13. Rad1 {[%emt 0:00:38]} a6 {[%emt 0:03:51]} 14. f4 {[%emt 0:08:18]} b5 {[%emt 0:05:43]} 15. f5 {[%emt 0:05:49]} Bd7 {[%emt 0:00:50]} 16. Bxf6 {[%emt 0:00:48]} Bxf6 {[%emt 0:01:10]} 17. Nd5 {[%emt 0:00:29]} Qxd2 {[%emt 0:00:07]} 18. Nxf6+ {[%emt 0:00:03]} Kg7 {[%emt 0:00:07]} 19. Rxd2 {[%emt 0:03:55]} Kxf6 {[%emt 0:00:29]} 20. fxg6+ {[%emt 0:00:06]} Kxg6 {[%emt 0:00:17]} 21. e5 {[%emt 0:00:06]} bxc4 {[%emt 0:05:24]} 22. Bxc4 {[%emt 0:00:24]} d5 {[%emt 0:00:13]} 23. Bxd5 {[%emt 0:01:19]} Bb5 {[%emt 0:00:20]} 24. Rf4 {[%emt 0:02:51]} Kg5 {[%emt 0:03:25]} 25. Rdd4 {[%emt 0:11:57]} Rc1+ {[%emt 0:01:35]} 26. Kf2 {[%emt 0:00:11]} e6 {[%emt 0:01:15]} 27. h4+ {[%emt 0:00:57]} Kg6 {[%emt 0:01:15]} 28. Rf6+ {[%emt 0:04:27]} Kg7 {[%emt 0:00:09]} 29. Rg4+ {[%emt 0:03:09]} Kh8 {[%emt 0:00:08]} 30. Be4 {[%emt 0:02:13]} Rf1+ {[%emt 0:00:31]} 31. Kg3 {[%emt 0:03:19]} Rxf6 {[%emt 0:00:06]} 32. exf6 {[%emt 0:00:03]} h6 {[%emt 0:00:14]} 33. Rg7 {[%emt 0:00:34]} Rg8 {[%emt 0:00:30]} 34. Rxg8+ {[%emt 0:00:06]} Kxg8 {[%emt 0:00:04]} 35. Kf4 {[%emt 0:00:10]} 1-0

[Event "SVK Amateur-ch 2020"]
[Site "Topolcany"]
[Date "2020.07.13"]
[Round "6.5"]
[White "Holly, Andrej"]
[Black "Skreko, Igor"]
[Result "0-1"]
[ECO "B92"]
[WhiteElo "2009"]
[BlackElo "1787"]
[Annotator "ChessBase"]
[PlyCount "89"]
[EventDate "2020.07.10"]
[EventType "swiss"]
[EventCountry "SVK"]
[SourceTitle "playchess.com"]
[Source "ChessBase"]
[SourceQuality "1"]
[TimeControl "3600+30"]

1. e4 {[%emt 0:00:00]} c5 {[%emt 0:00:00]} 2. Nf3 {[%emt 0:00:00]} d6 {[%emt 0:00:00]} 3. d4 {[%emt 0:00:00]} cxd4 {[%emt 0:00:00]} 4. Nxd4 {[%emt 0:00:00]} Nf6 {[%emt 0:00:00]} 5. Nc3 {[%emt 0:00:00]} a6 {[%emt 0:00:00]} 6. Be2 {[%emt 0:00:42]} e5 {[%emt 0:00:16]} 7. Nf3 {[%emt 0:00:20]} Be7 {[%emt 0:00:21]} 8. Bg5 {[%emt 0:00:29]} Nbd7 {[%emt 0:00:18]} 9. O-O {[%emt 0:01:33]} b5 {[%emt 0:01:14]} 10. a4 {[%emt 0:12:02]} b4 {[%emt 0:02:06]} 11. Nd5 {[%emt 0:00:20]} Bb7 {[%emt 0:08:36]} 12. Nxe7 {[%emt 0:10:43]} Qxe7 {[%emt 0:00:17]} 13. Nd2 {[%emt 0:00:46]} h6 {[%emt 0:02:24]} 14. Nc4 {[%emt 0:03:52]} d5 {[%emt 0:05:30]} 15. Bxf6 {[%emt 0:00:34]} Nxf6 {[%emt 0:00:09]} 16. exd5 {[%emt 0:03:46]} Bxd5 {[%emt 0:04:39]} 17. Ne3 {[%emt 0:06:55]} Be6 {[%emt 0:01:53]} 18. Bc4 {[%emt 0:01:35]} O-O {[%emt 0:02:47]} 19. Qe2 {[%emt 0:02:11]} a5 {[%emt 0:05:01]} 20. Bxe6 {[%emt 0:01:42]} Qxe6 {[%emt 0:00:06]} 21. Nc4 {[%emt 0:04:19]} Rfc8 {[%emt 0:02:44]} 22. b3 {[%emt 0:03:01]} Nd5 {[%emt 0:03:52]} 23. Rae1 {[%emt 0:00:32]} f6 {[%emt 0:03:11]} 24. f4 {[%emt 0:02:21]} Nb6 {[%emt 0:02:04]} 25. Qf3 {[%emt 0:04:27]} Nxc4 {[%emt 0:02:53]} 26. bxc4 {[%emt 0:00:02]} Qxc4 {[%emt 0:00:34]} 27. fxe5 {[%emt 0:01:53]} Qc5+ {[%emt 0:01:53]} 28. Kh1 {[%emt 0:00:20]} fxe5 {[%emt 0:00:29]} 29. Qb3+ {[%emt 0:02:35]} Kh8 {[%emt 0:01:56]} 30. Rf7 {[%emt 0:02:34]} Qxc2 {[%emt 0:01:42]} 31. Rf8+ {[%emt 0:00:21]} Kh7 {[%emt 0:02:56]} 32. Qxc2+ {[%emt 0:00:34]} Rxc2 {[%emt 0:00:04]} 33. Rxa8 {[%emt 0:00:39]} b3 {[%emt 0:00:50]} 34. Rd8 {[%emt 0:01:07]} b2 {[%emt 0:03:05]} 35. Rdd1 {[%emt 0:00:15]} Kg6 {[%emt 0:00:20]} 36. Rf1 {[%emt 0:03:15]} e4 {[%emt 0:00:51]} 37. h4 {[%emt 0:00:45]} e3 {[%emt 0:00:34]} 38. Rfe1 {[%emt 0:00:27]} e2 {[%emt 0:00:29]} 39. Rb1 {[%emt 0:00:08]} Kf5 {[%emt 0:00:28]} 40. Kg1 {[%emt 0:00:10]} Ke4 {[%emt 0:01:01]} 41. Kf2 {[%emt 0:00:05]} Kd3 {[%emt 0:01:18]} 42. Kf3 {[%emt 0:00:22]} Rd2 {[%emt 0:01:44]} 43. h5 {[%emt 0:03:14]} Kc2 {[%emt 0:02:03]} 44. Rxe2 {[%emt 0:00:32]} Rxe2 {[%emt 0:00:27]} 45. Kxe2 {[%emt 0:01:02]} 0-1

[Event "SVK Amateur-ch 2020"]
[Site "Topolcany"]
[Date "2020.07.13"]
[Round "6.6"]
[White "Mesaros, Jan"]
[Black "Juan Mas, Santiago"]
[Result "1/2-1/2"]
[ECO "A26"]
[WhiteElo "1782"]
[BlackElo "1983"]
[Annotator "ChessBase"]
[PlyCount "63"]
[EventDate "2020.07.10"]
[EventType "swiss"]
[EventCountry "SVK"]
[SourceTitle "playchess.com"]
[Source "ChessBase"]
[SourceQuality "1"]
[TimeControl "3600+30"]

1. c4 {[%emt 0:00:10]} e5 {[%emt 0:00:00]} 2. Nc3 {[%emt 0:00:10]} g6 {[%emt 0:01:32]} 3. e4 {[%emt 0:00:09]} Bg7 {[%emt 0:00:15]} 4. g3 {[%emt 0:00:23]} Ne7 {[%emt 0:00:28]} 5. Bg2 {[%emt 0:00:17]} O-O {[%emt 0:00:26]} 6. Nge2 {[%emt 0:00:13]} d6 {[%emt 0:00:37]} 7. O-O {[%emt 0:00:25]} Nbc6 {[%emt 0:00:40]} 8. d3 {[%emt 0:00:30]} h6 {[%emt 0:10:07]} 9. Rb1 {[%emt 0:01:40]} Bd7 {[%emt 0:05:12]} 10. Nd5 {[%emt 0:00:49]} Nxd5 {[%emt 0:02:11]} 11. cxd5 {[%emt 0:00:10]} Ne7 {[%emt 0:00:09]} 12. Be3 {[%emt 0:02:08]} c6 {[%emt 0:03:05]} 13. d4 {[%emt 0:01:11]} cxd5 {[%emt 0:09:16]} 14. dxe5 {[%emt 0:00:19]} dxe4 {[%emt 0:08:30]} 15. exd6 {[%emt 0:00:13]} Nf5 {[%emt 0:00:30]} 16. Qd2 {[%emt 0:03:43]} Bb5 {[%emt 0:02:38]} 17. Rfd1 {[%emt 0:00:37]} Bd3 {[%emt 0:00:37]} 18. Rbc1 {[%emt 0:00:33]} Nxd6 {[%emt 0:01:34]} 19. b3 {[%emt 0:01:54]} Nf5 {[%emt 0:03:42]} 20. Nf4 {[%emt 0:00:22]} Nxe3 {[%emt 0:00:56]} 21. Qxe3 {[%emt 0:02:53]} Bd4 {[%emt 0:02:52]} 22. Qe1 {[%emt 0:00:24]} Re8 {[%emt 0:01:58]} 23. Nxd3 {[%emt 0:00:39]} exd3 {[%emt 0:00:20]} 24. Qd2 {[%emt 0:01:09]} Qb6 {[%emt 0:01:28]} 25. Bf1 {[%emt 0:02:28]} Re6 {[%emt 0:08:20]} 26. Bxd3 {[%emt 0:03:17]} Rf6 {[%emt 0:00:30]} 27. Rf1 {[%emt 0:00:30]} Rd8 {[%emt 0:01:10]} 28. Qe2 {[%emt 0:02:26]} Rxf2 {[%emt 0:01:55]} 29. Rxf2 {[%emt 0:05:51]} Bxf2+ {[%emt 0:00:30]} 30. Kg2 {[%emt 0:00:30]} Be3 {[%emt 0:00:30]} 31. Rd1 {[%emt 0:00:30]} Qc6+ {[%emt 0:00:30]} 32. Qf3 {[%emt 0:00:30]} 1/2-1/2

[Event "SVK Amateur-ch 2020"]
[Site "Topolcany"]
[Date "2020.07.13"]
[Round "6.7"]
[White "Pietrzak, Tomasz"]
[Black "Cedzo, Adam"]
[Result "0-1"]
[ECO "E73"]
[WhiteElo "1896"]
[BlackElo "1974"]
[Annotator "ChessBase"]
[PlyCount "91"]
[EventDate "2020.07.10"]
[EventType "swiss"]
[EventCountry "SVK"]
[SourceTitle "playchess.com"]
[Source "ChessBase"]
[SourceQuality "1"]
[TimeControl "3600+30"]

1. d4 {[%emt 0:00:00]} Nf6 {[%emt 0:02:17]} 2. c4 {[%emt 0:00:00]} g6 {[%emt 0:00:24]} 3. Nc3 {[%emt 0:00:00]} Bg7 {[%emt 0:00:36]} 4. e4 {[%emt 0:01:53]} d6 {[%emt 0:01:40]} 5. Be2 {[%emt 0:00:05]} Nbd7 {[%emt 0:00:15]} 6. Be3 {[%emt 0:00:06]} e5 {[%emt 0:00:14]} 7. d5 {[%emt 0:00:05]} O-O {[%emt 0:00:24]} 8. g4 {[%emt 0:00:51]} Ne8 {[%emt 0:12:46]} 9. Qd2 {[%emt 0:03:48]} Nc5 {[%emt 0:09:09]} 10. b4 {[%emt 0:05:52]} Na6 {[%emt 0:00:34]} 11. Nb5 {[%emt 0:07:42]} c5 {[%emt 0:04:11]} 12. dxc6 {[%emt 0:00:29]} bxc6 {[%emt 0:02:35]} 13. Nxa7 {[%emt 0:00:50]} Bb7 {[%emt 0:00:43]} 14. b5 {[%emt 0:01:57]} cxb5 {[%emt 0:08:17]} 15. cxb5 {[%emt 0:00:40]} Nb8 {[%emt 0:01:35]} 16. f3 {[%emt 0:07:49]} f5 {[%emt 0:01:12]} 17. Bc4+ {[%emt 0:04:07]} Kh8 {[%emt 0:00:04]} 18. Bd5 {[%emt 0:01:34]} Bxd5 {[%emt 0:00:12]} 19. Qxd5 {[%emt 0:01:50]} Qa5+ {[%emt 0:00:10]} 20. Qd2 {[%emt 0:06:32]} Rxa7 {[%emt 0:00:32]} 21. Bxa7 {[%emt 0:01:55]} Qxa7 {[%emt 0:00:09]} 22. Nh3 {[%emt 0:06:49]} fxg4 {[%emt 0:01:40]} 23. fxg4 {[%emt 0:00:15]} Rf3 {[%emt 0:05:16]} 24. Nf2 {[%emt 0:01:50]} Bh6 {[%emt 0:01:11]} 25. Qc2 {[%emt 0:05:58]} Qa5+ {[%emt 0:07:44]} 26. Ke2 {[%emt 0:01:14]} Re3+ {[%emt 0:00:38]} 27. Kf1 {[%emt 0:01:03]} Qxb5+ {[%emt 0:01:22]} 28. Kg2 {[%emt 0:00:05]} Re2 {[%emt 0:00:32]} 29. Qb3 {[%emt 0:00:44]} Qc5 {[%emt 0:02:34]} 30. Qf3 {[%emt 0:03:06]} Rc2 {[%emt 0:01:55]} 31. g5 {[%emt 0:03:30]} Bg7 {[%emt 0:01:49]} 32. Rhf1 {[%emt 0:00:12]} Qa7 {[%emt 0:02:14]} 33. Rac1 {[%emt 0:02:16]} Rc6 {[%emt 0:00:50]} 34. Ng4 {[%emt 0:01:00]} Qxa2+ {[%emt 0:00:34]} 35. Kh1 {[%emt 0:00:28]} Qe6 {[%emt 0:00:40]} 36. Nh6 {[%emt 0:00:49]} Rxc1 {[%emt 0:00:30]} 37. Rxc1 {[%emt 0:00:10]} Na6 {[%emt 0:00:29]} 38. Nf7+ {[%emt 0:00:34]} Kg8 {[%emt 0:00:30]} 39. Rf1 {[%emt 0:00:21]} Nc5 {[%emt 0:00:20]} 40. Qg2 {[%emt 0:00:53]} Nd3 {[%emt 0:00:29]} 41. Nd8 {[%emt 0:00:26]} Qc4 {[%emt 0:00:40]} 42. Qe2 {[%emt 0:00:33]} Qb3 {[%emt 0:00:30]} 43. Nf7 {[%emt 0:00:37]} Nf4 {[%emt 0:00:13]} 44. Qf3 {[%emt 0:00:31]} Qxf3+ {[%emt 0:00:09]} 45. Rxf3 {[%emt 0:00:04]} Kxf7 {[%emt 0:00:05]} 46. h4 {[%emt 0:00:20]} 0-1

[Event "SVK Amateur-ch 2020"]
[Site "Topolcany"]
[Date "2020.07.13"]
[Round "6.8"]
[White "Meers, Hubert"]
[Black "Kalisky, Vladimir"]
[Result "0-1"]
[ECO "C48"]
[WhiteElo "2037"]
[BlackElo "2128"]
[Annotator "ChessBase"]
[PlyCount "96"]
[EventDate "2020.07.10"]
[EventType "swiss"]
[EventCountry "SVK"]
[SourceTitle "playchess.com"]
[Source "ChessBase"]
[SourceQuality "1"]
[TimeControl "3600+30"]

1. e4 {[%emt 0:00:00]} e5 {[%emt 0:00:00]} 2. Nf3 {[%emt 0:00:00]} Nc6 {[%emt 0:00:00]} 3. Bb5 {[%emt 0:00:00]} Nf6 {[%emt 0:00:00]} 4. Nc3 {[%emt 0:00:00]} d6 {[%emt 0:00:32]} 5. d4 {[%emt 0:00:00]} exd4 {[%emt 0:00:09]} 6. Nxd4 {[%emt 0:00:00]} Bd7 {[%emt 0:00:09]} 7. Bxc6 {[%emt 0:00:06]} bxc6 {[%emt 0:00:06]} 8. Qf3 {[%emt 0:02:12]} h6 {[%emt 0:07:42]} 9. O-O {[%emt 0:01:14]} c5 {[%emt 0:07:26]} 10. Nf5 {[%emt 0:01:36]} g6 {[%emt 0:05:50]} 11. Ne3 {[%emt 0:06:21]} Bg7 {[%emt 0:00:20]} 12. Nc4 {[%emt 0:08:10]} O-O {[%emt 0:04:57]} 13. Bf4 {[%emt 0:01:19]} Be6 {[%emt 0:05:00]} 14. Nd5 {[%emt 0:01:00]} Nh5 {[%emt 0:01:53]} 15. Rad1 {[%emt 0:03:01]} Rb8 {[%emt 0:10:06]} 16. c3 {[%emt 0:07:38]} Qd7 {[%emt 0:08:32]} 17. Qe3 {[%emt 0:10:52]} Kh7 {[%emt 0:02:44]} 18. b3 {[%emt 0:11:50]} Rbe8 {[%emt 0:03:41]} 19. Qd2 {[%emt 0:05:35]} f5 {[%emt 0:03:53]} 20. Nxc7 {[%emt 0:08:07]} Qxc7 {[%emt 0:01:57]} 21. Bxd6 {[%emt 0:00:12]} Qc6 {[%emt 0:01:14]} 22. Bxf8 {[%emt 0:00:11]} Rxf8 {[%emt 0:00:47]} 23. Qd6 {[%emt 0:00:51]} Qxd6 {[%emt 0:01:44]} 24. Rxd6 {[%emt 0:00:12]} Bxc4 {[%emt 0:01:20]} 25. bxc4 {[%emt 0:00:02]} Bxc3 {[%emt 0:00:28]} 26. Rd7+ {[%emt 0:00:53]} Kg8 {[%emt 0:00:16]} 27. exf5 {[%emt 0:00:37]} Rxf5 {[%emt 0:00:09]} 28. Re1 {[%emt 0:00:40]} Bxe1 {[%emt 0:00:03]} 29. g4 {[%emt 0:00:20]} Bxf2+ {[%emt 0:00:21]} 30. Kg2 {[%emt 0:00:04]} Rf7 {[%emt 0:00:31]} 31. Rd8+ {[%emt 0:00:43]} Rf8 {[%emt 0:00:23]} 32. Rxf8+ {[%emt 0:00:05]} Kxf8 {[%emt 0:00:06]} 33. gxh5 {[%emt 0:00:03]} Bd4 {[%emt 0:00:11]} 34. hxg6 {[%emt 0:00:03]} Kg7 {[%emt 0:00:02]} 35. Kf3 {[%emt 0:00:18]} Kxg6 {[%emt 0:00:02]} 36. Ke4 {[%emt 0:00:05]} Kg5 {[%emt 0:00:09]} 37. Kd5 {[%emt 0:00:03]} Kh4 {[%emt 0:00:18]} 38. a4 {[%emt 0:00:27]} Kh3 {[%emt 0:00:48]} 39. a5 {[%emt 0:00:03]} Kxh2 {[%emt 0:00:52]} 40. a6 {[%emt 0:00:03]} h5 {[%emt 0:00:11]} 41. Kc6 {[%emt 0:00:03]} h4 {[%emt 0:00:10]} 42. Kb7 {[%emt 0:00:01]} h3 {[%emt 0:00:08]} 43. Kxa7 {[%emt 0:00:03]} Kg3 {[%emt 0:00:33]} 44. Kb8 {[%emt 0:00:51]} Be5+ {[%emt 0:00:12]} 45. Kb7 {[%emt 0:00:38]} h2 {[%emt 0:00:07]} 46. a7 {[%emt 0:00:03]} h1=Q+ {[%emt 0:00:20]} 47. Kb6 {[%emt 0:00:06]} Qa8 {[%emt 0:00:12]} 48. Kb5 {[%emt 0:00:03]} Qxa7 {[%emt 0:00:42]} 0-1

[Event "SVK Amateur-ch 2020"]
[Site "Topolcany"]
[Date "2020.07.13"]
[Round "6.8"]
[White "Blazek, Milos"]
[Black "Trasakova, Adela"]
[Result "1-0"]
[ECO "B12"]
[WhiteElo "1970"]
[BlackElo "1660"]
[Annotator "ChessBase"]
[PlyCount "45"]
[EventDate "2020.07.10"]
[EventType "swiss"]
[EventCountry "SVK"]
[SourceTitle "playchess.com"]
[Source "ChessBase"]
[SourceQuality "1"]
[TimeControl "3600+30"]

1. e4 {[%emt 0:00:00]} c6 {[%emt 0:00:00]} 2. d4 {[%emt 0:00:22]} d5 {[%emt 0:00:00]} 3. e5 {[%emt 0:00:33]} c5 {[%emt 0:00:00]} 4. c3 {[%emt 0:01:20]} Nc6 {[%emt 0:00:00]} 5. Be2 {[%emt 0:01:20]} Bf5 {[%emt 0:03:12]} 6. f4 {[%emt 0:01:39]} Qb6 {[%emt 0:02:30]} 7. dxc5 {[%emt 0:03:27]} Qxc5 {[%emt 0:00:49]} 8. Nd2 {[%emt 0:02:51]} Rd8 {[%emt 0:04:12]} 9. Ngf3 {[%emt 0:04:09]} Bg4 {[%emt 0:04:15]} 10. Nb3 {[%emt 0:01:42]} Qb6 {[%emt 0:00:25]} 11. Nfd4 {[%emt 0:06:20]} Bxe2 {[%emt 0:01:45]} 12. Qxe2 {[%emt 0:05:27]} e6 {[%emt 0:00:46]} 13. Be3 {[%emt 0:00:54]} Nxd4 {[%emt 0:01:53]} 14. Bxd4 {[%emt 0:03:13]} Qc6 {[%emt 0:03:55]} 15. Bxa7 {[%emt 0:05:04]} Qc4 {[%emt 0:08:34]} 16. Qxc4 {[%emt 0:04:45]} dxc4 {[%emt 0:00:08]} 17. Nd2 {[%emt 0:00:35]} b5 {[%emt 0:01:47]} 18. a4 {[%emt 0:00:58]} Ra8 {[%emt 0:02:17]} 19. axb5 {[%emt 0:04:34]} Bc5 {[%emt 0:01:03]} 20. Nxc4 {[%emt 0:00:22]} Rxa7 {[%emt 0:01:40]} 21. Nd6+ {[%emt 0:00:59]} Kd7 {[%emt 0:01:41]} 22. Rxa7+ {[%emt 0:00:33]} Bxa7 {[%emt 0:00:09]} 23. Nxf7 {[%emt 0:00:08]} 1-0

[Event "SVK Amateur-ch 2020"]
[Site "Topolcany"]
[Date "2020.07.13"]
[Round "6.9"]
[White "Joba, Arpad"]
[Black "Deruelle Sala, Albert"]
[Result "0-1"]
[ECO "B40"]
[WhiteElo "2122"]
[BlackElo "2078"]
[Annotator "ChessBase"]
[PlyCount "106"]
[EventDate "2020.07.10"]
[EventType "swiss"]
[EventCountry "SVK"]
[SourceTitle "playchess.com"]
[Source "ChessBase"]
[SourceQuality "1"]
[TimeControl "3600+30"]

1. e4 {[%emt 0:00:00]} c5 {[%emt 0:00:00]} 2. Nf3 {[%emt 0:00:05]} e6 {[%emt 0:00:00]} 3. c3 {[%emt 0:00:48]} Nf6 {[%emt 0:00:00]} 4. e5 {[%emt 0:00:12]} Nd5 {[%emt 0:00:00]} 5. d4 {[%emt 0:00:18]} cxd4 {[%emt 0:00:01]} 6. cxd4 {[%emt 0:00:05]} d6 {[%emt 0:00:36]} 7. Nc3 {[%emt 0:00:42]} Nc6 {[%emt 0:01:42]} 8. Bd3 {[%emt 0:05:26]} Nxc3 {[%emt 0:01:47]} 9. bxc3 {[%emt 0:00:07]} dxe5 {[%emt 0:00:05]} 10. dxe5 {[%emt 0:07:08]} Qa5 {[%emt 0:01:25]} 11. Qb3 {[%emt 0:05:40]} Nxe5 {[%emt 0:04:05]} 12. Nxe5 {[%emt 0:08:25]} Qxe5+ {[%emt 0:00:34]} 13. Be3 {[%emt 0:00:03]} a6 {[%emt 0:00:29]} 14. O-O {[%emt 0:11:27]} Bd6 {[%emt 0:00:35]} 15. g3 {[%emt 0:00:07]} O-O {[%emt 0:00:40]} 16. Rfd1 {[%emt 0:00:39]} Bc5 {[%emt 0:01:35]} 17. Bf4 {[%emt 0:00:28]} Qh5 {[%emt 0:00:08]} 18. Be4 {[%emt 0:00:38]} Qe2 {[%emt 0:00:58]} 19. Bg2 {[%emt 0:04:52]} Bxf2+ {[%emt 0:01:55]} 20. Kh1 {[%emt 0:00:04]} Qb5 {[%emt 0:03:25]} 21. Qc2 {[%emt 0:00:09]} Bc5 {[%emt 0:00:08]} 22. Rab1 {[%emt 0:04:00]} Qa5 {[%emt 0:00:27]} 23. c4 {[%emt 0:06:38]} h6 {[%emt 0:02:30]} 24. g4 {[%emt 0:06:16]} Be7 {[%emt 0:01:26]} 25. Qe2 {[%emt 0:05:13]} Rd8 {[%emt 0:04:29]} 26. Rf1 {[%emt 0:00:07]} Rd7 {[%emt 0:00:42]} 27. Rb3 {[%emt 0:00:31]} Bg5 {[%emt 0:06:49]} 28. Be5 {[%emt 0:01:34]} Rd2 {[%emt 0:01:13]} 29. Qe4 {[%emt 0:00:29]} Qxa2 {[%emt 0:03:09]} 30. Qf3 {[%emt 0:01:23]} Rd7 {[%emt 0:01:43]} 31. Rd3 {[%emt 0:00:22]} Qa4 {[%emt 0:00:44]} 32. Ra1 {[%emt 0:00:50]} Rxd3 {[%emt 0:07:19]} 33. Qxd3 {[%emt 0:00:07]} Qe8 {[%emt 0:01:48]} 34. Rd1 {[%emt 0:00:50]} a5 {[%emt 0:00:16]} 35. Qc3 {[%emt 0:00:06]} f6 {[%emt 0:00:39]} 36. Bg3 {[%emt 0:00:47]} h5 {[%emt 0:01:24]} 37. h4 {[%emt 0:00:27]} Bh6 {[%emt 0:00:34]} 38. g5 {[%emt 0:00:35]} fxg5 {[%emt 0:00:01]} 39. Be4 {[%emt 0:00:15]} gxh4 {[%emt 0:00:27]} 40. Be5 {[%emt 0:01:15]} Bd7 {[%emt 0:00:09]} 41. Rg1 {[%emt 0:00:25]} Bc6 {[%emt 0:06:35]} 42. Bxc6 {[%emt 0:00:50]} Qxc6+ {[%emt 0:00:09]} 43. Kh2 {[%emt 0:00:04]} Qd7 {[%emt 0:00:31]} 44. Rg2 {[%emt 0:00:58]} a4 {[%emt 0:00:20]} 45. Qc2 {[%emt 0:00:08]} a3 {[%emt 0:00:34]} 46. Qg6 {[%emt 0:00:17]} Ra5 {[%emt 0:04:11]} 47. Bc3 {[%emt 0:00:57]} Bf4+ {[%emt 0:00:43]} 48. Kh3 {[%emt 0:00:38]} e5+ {[%emt 0:00:13]} 49. Kxh4 {[%emt 0:00:05]} Ra6 {[%emt 0:00:16]} 50. Qb1 {[%emt 0:00:48]} Qe7+ {[%emt 0:00:33]} 51. Kh3 {[%emt 0:00:08]} Qe6+ {[%emt 0:02:02]} 52. Kh4 {[%emt 0:00:06]} g5+ {[%emt 0:00:21]} 53. Kxh5 {[%emt 0:00:06]} Qh3# 0-1